Cogmind - Beta 16 @@@ ROGUE MODE // 2026.02.02 @ 23:04:11 Player: verv Result: Destroyed by G-34 Mercenary with Small Laser Performance ------------- Evolutions (1) 500 Regions Visited (2) 400 Robots Destroyed (14) 70 Value Destroyed (232) 232 Prototype IDs (0) 0 Alien Tech Used (0) 0 Bonus (0) 0 TOTAL SCORE: 1202 Bonus ------- None Cogmind --------- Core Integrity 0/400 Matter 300/300 Energy 100/100 System Corruption 1% Temperature Cool (6) Movement Core (50) Location -9/Materials Parts ------- > --- POWER (1) -------- (None) > --- PROPULSION (2) --- (None) > --- UTILITY (4) ------ Signal Interpreter > --- WEAPON (2) ------- (None) > --- INVENTORY (5) ---- Huge Storage Unit Sensor Array Signal Interpreter Grenade Launcher Peak State ------------ > --- POWER ------------ Ion Engine > --- PROPULSION ------- Light Treads Light Treads > --- UTILITY ---------- Small Storage Unit Signal Interpreter > --- WEAPON ----------- EM Pulse Gun EM Pulse Gun > --- INVENTORY -------- Ion Engine Assault Rifle [Rating: 7] Favorites ----------- Power Ion Engine Engine Ion Engine Propulsion Light Treads Treads Light Treads Leg Aluminum Leg Utility Signal Interpreter Storage High-capacity Storage Unit Processor Signal Interpreter Weapon Assault Rifle Energy Gun EM Pulse Gun Ballistic Gun Assault Rifle Ballistic Cannon Light Cannon Build | -11 -10 -9 ------- Run | Yrd Mat Mat Slots Evolved 2 | . . 2 Power . | . . . Propulsion . | . . . Utility 2 | . . 2 Weapon . | . . . Parts Attached 13 | 5 8 . Power 1 | 1 . . Engine 1 | 1 . . Core . | . . . Reactor . | . . . Propulsion 4 | 2 2 . Treads 2 | 2 . . Leg 2 | . 2 . Wheel . | . . . Hover . | . . . Flight . | . . . Utility 4 | . 4 . Device . | . . . Storage 3 | . 3 . Processor 1 | . 1 . Hackware . | . . . Protection . | . . . Artifact . | . . . Weapon 4 | 2 2 . Energy Gun 2 | 2 . . Energy Cannon . | . . . Ballistic Gun 1 | . 1 . Ballistic Cannon 1 | . 1 . Launcher . | . . . Special Weapon . | . . . Impact Weapon . | . . . Slashing Weapon . | . . . Piercing Weapon . | . . . Special Melee Weapon . | . . . Unidentified Prototypes . | . . . Parts Lost 5 | . 2 3 Power 1 | . . 1 Propulsion 3 | . 1 2 Utility . | . . . Weapon 1 | . 1 . Highest Loss Streak 3 | . 1 3 To Critical Strikes . | . . . Average Backups 3 | 1 4 3 Power . | . . . Propulsion . | . . . Utility 2 | . 2 2 Weapon . | . . 1 Tool/Special . | . . . Unused Backups 7 | . 4 3 Power 1 | . 1 . Propulsion . | . . . Utility 5 | . 3 2 Weapon 1 | . . 1 Tool/Special . | . . . Average Slot Usage (%) 88 | . 93 40 Engine 13 | . 14 8 Treads 16 | . 17 . Leg 10 | . 10 15 Storage 12 | . 13 . Processor 12 | . 12 11 Energy Gun 3 | . 4 . Ballistic Gun 11 | . 11 4 Ballistic Cannon 6 | . 7 . Peak Build Rating 7 | 5 7 5 Average Rating 6 | 3 6 3 On Entrance 3 | . 5 5 Avg Prop Armor Cover (%) 10 | . 10 . Naked Turns . | . . . Heaviest Build 90 | 9 90 7 Greatest Support 40 | 40 40 20 Greatest Overweight (x) 8 | . 8 1 Average Overweight (x) 1 | . 2 . Largest Inventory Capacity 25 | 5 25 5 Average Capacity 18 | 5 19 5 Most Carried 7 | 5 7 4 Average Carried 3 | 2 4 3 Final Capacity 5 | 5 5 5 Final Carried 4 | 2 3 4 Class Distribution -------------------- 100% | Mutant Dominant Class ---------------- Mutant | -10/Materials Mutant | -9/Materials Resources | -11 -10 -9 ----------- Run | Yrd Mat Mat Matter Collected 422 | 181 241 . Remotely . | . . . Salvage Created 396 | . 367 29 Parts 28 | . 25 3 Haulers Intercepted . | . . . Recyclers Shooed 1 | . 1 . Parts Field Recycled . | . . . Retrieved Matter . | . . . Parts Self-Destructed . | . . . Prevented . | . . . Parts Restored . | . . . Kills | -11 -10 -9 ------- Run | Yrd Mat Mat Combat Hostiles Destroyed 13 | . 12 1 Melee 1 | . . 1 Guns 12 | . 12 . Classes Destroyed 3 | . 3 . Recycler 1 | . 1 . Swarmer 9 | . 9 . Grunt 4 | . 3 1 Best Kill Streak 3 | . 3 1 Combat Bots Only 3 | . 3 1 Max Kills in Single Turn 1 | . 1 1 Gunslinging . | . . . Exploded . | . . . Melee 1 | . . 1 Uniques/NPCs Destroyed . | . . . Combat | -11 -10 -9 -------- Run | Yrd Mat Mat Hostile Shots Fired 140 | . 44 96 Missed 49 | . 12 37 Hits 91 | . 32 59 Melee 2 | . . 2 Projectile 89 | . 32 57 Critical Strikes 2 | . . 2 Damage Taken 1243 | . 522 721 Core 579 | . 173 406 Absorbed by Shields . | . . . Core Remaining (%) 65 | 100 30 . Volleys Fired 42 | . 42 . Largest 2 | . 2 . Hottest 80 | . 80 . Shots Fired 67 | . 67 . Gun 59 | . 59 . Cannon 8 | . 8 . Launcher . | . . . Special . | . . . Kinetic 33 | . 33 . Thermal . | . . . Explosive . | . . . Electromagnetic 34 | . 34 . Robot Hit Streak 6 | . 6 . Robot Miss Streak 8 | . 8 . Penetration Max . | . . . Secondary Targets 1 | . 1 . Max Gunslinging Chain 1 | . 1 . Shots Hit Robots 33 | . 33 . Core Hits 18 | . 16 2 Critical Kills . | . . . Critical Parts Destroyed . | . . . Critical Strikes . | . . . Melee Attacks . | . . . Impact . | . . . Slashing . | . . . Piercing . | . . . Sneak Attacks . | . . . Combat Hostiles . | . . . Follow-up Attacks . | . . . Damage Inflicted 487 | . 469 18 Guns 369 | . 369 . Cannons 52 | . 52 . Explosions 41 | . 41 . Melee . | . . . Ramming 25 | . 7 18 Kinetic 220 | . 220 . Thermal 41 | . 41 . Explosive . | . . . Electromagnetic 201 | . 201 . Impact . | . . . Slashing . | . . . Piercing . | . . . Highest Corruption 1 | . . 1 Average Corruption 1 | . . 1 Corruption Purged . | . . . Corruption Blocked . | . . . Overload Shots . | . . . Overflow Damage . | . . . Projectiles . | . . . Explosions . | . . . Melee . | . . . Knockbacks 1 | . 1 . Impact 1 | . 1 . Kinetic . | . . . Secondary . | . . . Self-Inflicted Damage 18 | . 18 . Shots 1 | . 1 . Rammed 1 | . 1 . Targets Rammed 9 | . 4 5 Kicked 8 | . 3 5 Crushed . | . . . Highest Temperature 174 | . 174 6 Average Temperature 59 | . 60 6 Received Heat Transfer 423 | . 78 345 Siege Activations . | . . . Martial Activations . | . . . Shielding Activations . | . . . Robots Disrupted . | . . . Combat Hostiles . | . . . Robots Corrupted 1 | . 1 . Combat Hostiles . | . . . Parts Fried 2 | . 2 . Impact Corruptions . | . . . Robots Melted . | . . . Combat Hostiles . | . . . Parts Melted . | . . . Heat Transferred 50 | . 50 . Parts Sabotaged . | . . . Parts Stolen . | . . . Parts Stripped . | . . . Power Chain Reactions 1 | . 1 . Alert | -11 -10 -9 ------- Run | Yrd Mat Mat Maximum Alert Level . | . . . Low Security (%) 100 | 100 100 100 Level 1 . | . . . Level 2 . | . . . Level 3 . | . . . Level 4 . | . . . Level 5 . | . . . High Security . | . . . Max Security . | . . . Peak Influence 96 | . 96 25 Initial . | . . . Average 10 | . 11 4 Influence Increases 365 | . 315 50 Destroy 0b10 Robot/C 260 | . 240 20 Destroy 0b10 Robot/NC 5 | . 5 . Destroy Leader 50 | . 50 . Successful Hack 14 | . 14 . Destroy Structure 6 | . 6 . Lose Combat Pursuer 30 | . . 30 Influence Decreases 365 | . 315 50 Time Decay 315 | . 295 20 Lost Part 50 | . 20 30 Squads Dispatched 5 | . 3 2 Investigation 4 | . 2 2 Extermination . | . . . Reinforcement 1 | . 1 . Assault . | . . . Garrison . | . . . Intercept . | . . . Searches Triggered . | . . . Construction Impeded . | . . . Haulers Reinforced . | . . . Active Scanning Responses . | . . . Cargo Convoy Interrupts . | . . . Stealth | -11 -10 -9 --------- Run | Yrd Mat Mat Distress Signals . | . . . Communications Jammed . | . . . Distress Signals . | . . . Times Spotted 34 | . 20 14 Peak Tracking Total 9 | . 3 9 Tactical Retreats 1 | . . 1 Traps | -11 -10 -9 ------- Run | Yrd Mat Mat Traps Triggered 2 | . . 2 Indirectly . | . . . Trap Hack Attempts . | . . . Triggered . | . . . Disarmed . | . . . Reprogrammed . | . . . Reused . | . . . Traps Extracted . | . . . Installed . | . . . Triggered . | . . . Machines | -11 -10 -9 ---------- Run | Yrd Mat Mat Machines Disabled . | . . . Max in Single Turn . | . . . Machines Repaired . | . . . Machines Dismantled . | . . . Machines Sabotaged . | . . . Overloaded Fab Kills . | . . . Hacking | -11 -10 -9 --------- Run | Yrd Mat Mat Machines Accessed 8 | . 7 1 Terminals 7 | . 6 1 Fabricators . | . . . Repair Stations . | . . . Recycling Units 1 | . 1 . Scanalyzers . | . . . Garrison Access . | . . . Total Hacks 23 | . 20 3 Successful 9 | . 9 . Failed 14 | . 11 3 Catastrophic 3 | . 2 1 Database Lockouts . | . . . Manual . | . . . Terminals 20 | . 17 3 Fabricators . | . . . Repair Stations . | . . . Recycling Units 3 | . 3 . Scanalyzers . | . . . Garrison Access . | . . . Terminal Hacks 8 | . 8 . Robot Analysis 1 | . 1 . Emergency Access Points 2 | . 2 . Terminal Index 1 | . 1 . Scanalyzer Index 1 | . 1 . Hauler Manifests 2 | . 2 . Zone Layout 1 | . 1 . Fabricator Hacks . | . . . Repair Station Hacks . | . . . Recycling Unit Hacks 1 | . 1 . Report Inventory 1 | . 1 . Scanalyzer . | . . . Garrison Access Hacks . | . . . Unauthorized Hacks . | . . . Terminals . | . . . Fabricators . | . . . Repair Stations . | . . . Recycling Units . | . . . Scanalyzers . | . . . Garrison Access . | . . . Data Cores Recovered . | . . . Used . | . . . Hacking Detections 5 | . 4 1 Full Trace Events 5 | . 4 1 Feedback Events . | . . . Feedback Blocked . | . . . Robot Schematics Acquired . | . . . Robots Built . | . . . Authchips . | . . . Time . | . . . Total Robot Build Rating . | . . . Part Schematics Acquired . | . . . Parts Built . | . . . Authchips . | . . . Time . | . . . Total Part Build Rating . | . . . Part Studies Acquired . | . . . Parts Repaired . | . . . Time . | . . . Parts Recycled . | . . . Recycled Matter . | . . . Retrieved Matter . | . . . Retrieved Components . | . . . Parts Scanalyzed . | . . . Part Schematics Acquired . | . . . Parts Damaged . | . . . Bothacking | -11 -10 -9 ------------ Run | Yrd Mat Mat Used RIF Installer . | . . . Robots Hacked . | . . . Non-combat . | . . . Combat . | . . . Robot Hacks Applied . | . . . Relay Couplers Released . | . . . Fabnet Peak Effective % . | . . . Robots Rewired . | . . . Allies Hacked . | . . . Hacks Repelled . | . . . Allies | -11 -10 -9 -------- Run | Yrd Mat Mat Total Allies . | . . . Largest Group . | . . . Highest-Rated Group . | . . . Highest-Rated Ally . | . . . Total Orders . | . . . Ally Attacks . | . . . Total Damage . | . . . Kills . | . . . Allies Corrupted . | . . . Allies Melted . | . . . Intel | -11 -10 -9 ------- Run | Yrd Mat Mat Active Infowar (turns) . | . . . Robot Analysis Total 1 | . 1 . Derelict Logs Recovered . | . . . Drone Launches . | . . . Drone Recoveries . | . . . Exploration | -11 -10 -9 ------------- Run | Yrd Mat Mat Turns Passed 2277 | 83 2015 179 Spaces Moved 747 | 60 583 104 Core 37 | 22 . 15 Treads 343 | 38 305 . Legs 367 | . 278 89 Wheels . | . . . Hover . | . . . Flight . | . . . Fastest Speed 50 | 50 120 50 Average Speed 272 | 119 316 112 Slowest Speed 680 | 160 680 120 Overloaded Moves . | . . . Propulsion Burnouts . | . . . Robots Hopped . | . . . Potential Cave-ins . | . . . Cave-ins Triggered . | . . . Exploration Rate (%) 34 | 4 79 19 Regions Visited 2 Branch Regions . Pre-discovered Areas . | . . . Known Exits Taken 1 | . 1 . Unknown Exits Taken 1 | 1 . . Scrap Searched . | . . . Spaces Dug . | . . . Terrain Destroyed 6 | . 6 . Melee . | . . . Projectile . | . . . AOE 6 | . 6 . Terrain Rammed . | . . . Walls Destroyed . | . . . Machines Disabled . | . . . Actions | -11 -10 -9 --------- Run | Yrd Mat Mat Total 911 | 71 675 165 Wait 63 | . 8 55 Move 745 | 59 582 104 Hop . | . . . Pick Up 24 | 7 16 1 Fast Attach . | . . . Attach 11 | 5 6 . Detach 1 | . 1 . Swap 3 | . 3 . Drop 13 | . 13 . Fire 42 | . 42 . Melee . | . . . Ram . | . . . Kick 8 | . 3 5 Crush 1 | . 1 . Escape Stasis . | . . . Rewire . | . . . Trap . | . . . Miscellaneous . | . . . Route ------- -11/Scrapyard -10/Materials (discovered 3 exits: *Mat / *Min x2) -9/Materials (discovered 1 exit: [*Mat]) History --------- Turn | Location | Event 9 | -11/Scrapyard | Discovered new exit (range 16) 84 | -11/Scrapyard | Entered Materials 85 | -10/Materials | Met a group of wandering Federalists 202 | -10/Materials | Discovered new exit (range 14) 301 | -10/Materials | Build established: Mutant 519 | -10/Materials | Discovered new exit (range 7) 531 | -10/Materials | Discovered new exit (range 9) 533 | -10/Materials | Identified exit to Mines 548 | -10/Materials | Identified exit to Materials 781 | -10/Materials | Core integrity fell below 50% 2099 | -10/Materials | Entered another Materials area 2099 | -9/Materials | Evolved 2 slots: Utility x2 2216 | -9/Materials | Discovered new exit (range 10) 2236 | -9/Materials | Core integrity fell below 50% 2263 | -9/Materials | Core integrity fell below 20% 2265 | -9/Materials | Lost 3 parts (1p2n) 2278 | -9/Materials | Destroyed by G-34 Mercenary with Small Laser Last Messages --------------- Kicked G-34 Mercenary. L-31 Rogue destroyed. Kicked G-34 Mercenary out of the way. G-34 Mercenary destroyed. R-06 Scavenger collects Melee Analysis Suite. Kicked M-13 Machinist. R-06 Scavenger collects Imp. Aluminum Leg. K-01 Serf collects debris. Triggered Shock Trap. The floor emits a surge of raw power. System corrupted (+1). EXIT=FOUND Aluminum Leg destroyed. G-34 Mercenary destroyed. Ion Engine destroyed. Connecting with Terminal... ALERT: Suspicious activity at Terminal M004. Dispatching Investigation squad. K-01 Serf collects debris. K-01 Serf cleans the Terminal. Map ----- +----------------------------------------------------+ | ???????????????????????# # """ | | ???????????????????????# # """ | | ???????????????????????# #?### | | ???????????????????????# #???? | | ???????????????????????# #???? | | ???????????????????????# #???? | | ???????????????????????# #???? | | ???????????????????????# #???? | | ???????????????????????# #???? | | ???????????????????????# #???? | | ???????????????????????# #???? | | ???????????????????????# #???? | | ???????????????????????# #???? | | ?????????#####?????????# #???? | | ????????? +?????????# #???? | | ?????????# #?????????# #???? | | ?????????# #?????????# #???? | | ?????????# #?????????# #???? | | ?????????# +?????????# #???? | | ?######### #? ??????# #???? | | ? # #? ??????# %#???? | | ? """ # #? ??????# !*#???? | | # """ # #? ??????# %#???? | | # """ # ###+####### !%#???? | | # #g #???? | | # @ gYg ag %##### | | # "T" #gg T ok | | # """ # #####/###### | | # # * k# | | ########## =%!# | | ?????????# [ # | | ?????????# # | | ?????????# # | | ?????????# # | | ?????????+ """ ####+####### | | ?????????# """"" #??# #?????? | | ?????????# """"" #??# #?????? | | ?????????# """"" #### ###???? | | ?????????# """ #???? | | ?????????# +???? | | ?????????# #???? | | ?????????+ ###+######+####???? | | ?????????# ????????? ??????? | | ?????????#